fUSD/lending_fUSD_20240221
["ID","MTS","AMOUNT","RATE_DAILY","PERIOD"]
[314632259,1708477832697,-296.979827,0.00039146,2]
[314632261,1708477832709,-150.0,0.00039153,2]
[314632264,1708477832881,-157.48,0.0003916,2]
[314632265,1708477832892,-134130.16645712,0.00039161,5]
[314632266,1708477832905,-306.530005,0.00039161,5]
[314632267,1708477832938,-8126.11468679,0.00039161,5]
[314632268,1708477832966,-496.20108709,0.00039161,5]
[314632269,1708477832978,-261.52379354,0.00039161,5]
[314632270,1708477832991,-516.2939322,0.00039161,5]
[314632272,1708477837867,-4441.22855691,0.00039161,5]
[314632280,1708477837967,-250.28768682,0.00039161,5]
[314632281,1708477840159,-492.09758357,0.00039161,5]
[314632287,1708477841113,818.701292,0.0003452,2]
[314632305,1708477841393,1228.051938,0.00034794,2]
[314632306,1708477841910,1637.402584,0.00034931,2]
[314632307,1708477842050,2046.75323,0.00035068,2]
[314632308,1708477842300,2865.454523,0.00035342,2]
[314632312,1708477842673,-175.43,0.00038773,2]
[314632313,1708477842683,-175.43,0.0003888,2]
[314632314,1708477842692,-175.43,0.00038986,2]
[314632315,1708477842704,-175.43,0.00039092,2]
[314632316,1708477842714,-10257.58699496,0.00039161,5]
[314632317,1708477842724,-173.022126,0.00039167,28]
[314632318,1708477842733,-688.95474291,0.00039171,3]
[314632319,1708477842743,-124594.1510354,0.00039171,2]
[314632320,1708477842752,-15080.57191078,0.00039171,2]
[314632333,1708477845504,8851.875487,0.0003452,2]
[314632334,1708477845755,-270.82874064,0.00037705,2]
[314632335,1708477845765,-157.02,0.00039161,10]
[314632336,1708477845775,-10366.55688473,0.00039171,2]
[314632337,1708477846254,13277.81323,0.00034794,2]
[314632338,1708477846267,-897.9602966,0.00039171,2]
[314632339,1708477846279,-278.3400048,0.00039171,2]
[314632340,1708477846295,-672.44009638,0.00039171,2]
[314632341,1708477846306,-4273.563245,0.00039171,2]
[314632342,1708477846335,-37373.03770198,0.00039171,2]
[314632343,1708477846347,-85453.90309246,0.00039171,2]
[314632344,1708477846601,-54014.23696747,0.00039171,2]
[314632345,1708477846610,-13633.3300894,0.00039171,2]
[314632346,1708477846622,-79639.0153919,0.00039181,5]
[314632347,1708477846633,-1875.21681685,0.00039181,4]
[314632348,1708477846643,-200.0,0.00039182,2]
[314632349,1708477846652,-30699.9976898,0.00039191,7]
[314632350,1708477846663,-1000.0,0.00039191,2]
[314632351,1708477846673,-9494.79688849,0.00039198,4]
[314632352,1708477846683,-175.43,0.00039199,2]
[314632353,1708477846692,-155.0,0.00039205,4]
[314632354,1708477846702,-208.23,0.00039293,2]
[314632355,1708477846711,-200.0,0.00039298,5]
[314632356,1708477846721,-175.43,0.00039305,2]
[314632357,1708477846730,-161.0,0.00039356,7]
[314632358,1708477846739,-200.0,0.00039357,20]
[314632359,1708477846748,-150.0,0.00039401,2]
[314632360,1708477846756,-150.0,0.00039403,2]
[314632361,1708477846766,-150.0,0.00039405,2]
[314632362,1708477846775,-150.0,0.00039406,2]
[314632363,1708477846784,-150.0,0.00039407,2]
[314632364,1708477846793,-156.18,0.00039408,2]
[314632365,1708477846802,-800.0,0.00039411,5]
[314632366,1708477846811,-175.43,0.00039411,2]
[314632367,1708477846820,-150.0,0.00039413,2]
[314632368,1708477846829,-1500.0,0.00039414,2]
[314632369,1708477846839,-150.0,0.00039416,2]
[314632370,1708477846848,-150.0,0.00039418,2]
[314632371,1708477846857,-150.0,0.00039423,2]
[314632372,1708477846867,-150.0,0.00039424,2]
[314632373,1708477846876,-150.0,0.00039425,2]
[314632374,1708477846885,-150.0,0.00039425,2]
[314632375,1708477846894,-150.0,0.00039426,2]
[314632376,1708477846904,-182.14432098,0.00039427,2]
[314632377,1708477846913,-300.0,0.0003943,2]
[314632378,1708477846922,-150.0,0.00039432,2]
[314632379,1708477846931,-150.0,0.00039439,2]
[314632380,1708477846941,-150.0,0.00039447,2]
[314632381,1708477846949,-150.0,0.00039449,2]
[314632382,1708477846959,-150.0,0.00039452,2]
[314632383,1708477846968,-150.0,0.00039452,2]
[314632384,1708477846977,-150.0,0.00039454,2]
[314632385,1708477846986,-150.0,0.00039454,2]
[314632386,1708477846996,-1500.0,0.00039457,2]
[314632387,1708477847005,-150.0,0.00039457,2]
[314632388,1708477847014,-150.0,0.00039458,2]
[314632389,1708477847023,-150.0,0.00039458,2]
[314632390,1708477847033,-800.0,0.00039464,5]
[314632391,1708477847042,-150.0,0.00039466,2]
[314632392,1708477847051,-150.0,0.00039469,2]
[314632393,1708477847062,-1500.0,0.00039471,2]
[314632394,1708477847071,-150.0,0.00039475,2]
[314632395,1708477847080,-300.0,0.00039477,2]
[314632396,1708477847091,-150.0,0.00039478,2]
[314632397,1708477847101,-150.0,0.00039481,2]
[314632398,1708477847111,-150.0,0.00039481,2]
[314632399,1708477847121,-150.0,0.00039486,2]
[314632400,1708477847130,-150.0,0.00039486,2]
[314632401,1708477847139,-186.83697916,0.00039487,2]
[314632402,1708477847151,-150.0,0.00039488,2]
[314632403,1708477847161,-150.0,0.00039489,2]
[314632404,1708477847170,-300.0,0.0003949,2]
[314632405,1708477847181,-150.0,0.00039493,2]
[314632406,1708477847190,-150.0,0.00039496,2]
[314632407,1708477847199,-9461.09857,0.000395,2]
[314632408,1708477847208,-308.0507918,0.00039507,2]
[314632409,1708477847218,-150.0,0.00039508,2]
[314632410,1708477847228,-150.0,0.00039508,2]
[314632411,1708477847237,-150.0,0.00039508,2]
[314632412,1708477847248,-150.0,0.00039509,2]
[314632413,1708477847258,-1500.0,0.0003951,2]
[314632414,1708477847268,-150.0,0.00039513,2]
[314632415,1708477847277,-300.0,0.00039516,2]
[314632416,1708477847287,-175.43,0.00039518,2]
[314632417,1708477847297,-200.0,0.00039518,5]
[314632418,1708477847306,-800.0,0.00039518,5]
[314632419,1708477847315,-200.0,0.00039518,20]
[314632420,1708477847325,-500.0,0.00039518,20]
[314632421,1708477847335,-200.0,0.00039518,20]
[314632422,1708477847345,-150.0,0.00039519,2]
[314632423,1708477847356,-151.34,0.00039521,2]
[314632424,1708477847368,-150.0,0.00039523,2]
[314632425,1708477847377,-150.0,0.00039526,2]
[314632426,1708477847388,-150.0,0.00039529,2]
[314632427,1708477847398,-150.0,0.00039532,2]
[314632428,1708477847407,-150.0,0.00039533,2]
[314632429,1708477847417,-150.0,0.00039535,2]
[314632430,1708477847426,-150.0,0.00039536,2]
[314632431,1708477847436,-150.0,0.00039536,2]
[314632432,1708477847446,-150.0,0.00039537,2]
[314632433,1708477847456,-150.0,0.00039537,2]
[314632434,1708477847465,-150.0,0.00039539,2]
[314632435,1708477847475,-150.0,0.00039539,2]
[314632436,1708477847484,-150.0,0.00039539,2]
[314632437,1708477847494,-150.0,0.0003954,2]
[314632438,1708477847505,-150.0,0.00039541,2]
[314632439,1708477847514,-150.0,0.00039542,2]
[314632440,1708477847524,-150.0,0.00039542,2]
[314632441,1708477847533,-150.0,0.00039545,2]
[314632442,1708477847544,-150.0,0.00039546,2]
[314632443,1708477847554,-150.0,0.00039547,2]
[314632444,1708477847563,-1500.0,0.00039552,2]
[314632445,1708477847573,-150.0,0.0003956,2]
[314632446,1708477847582,-1500.0,0.00039561,2]
[314632447,1708477847591,-150.0,0.00039563,2]
[314632448,1708477847600,-150.0,0.00039563,2]
[314632449,1708477847609,-153.02801044,0.00039567,5]
[314632450,1708477847619,-150.0,0.00039569,2]
[314632451,1708477847632,-150.0,0.0003957,2]
[314632452,1708477847642,-150.0,0.00039571,2]
[314632453,1708477847652,-800.0,0.00039572,5]
[314632454,1708477847664,-200.0,0.00039574,2]
[314632455,1708477847673,-150.0,0.00039574,2]
[314632456,1708477847683,-1409.58065114,0.00039574,2]
[314632457,1708477847692,-150.0,0.00039576,2]
[314632458,1708477847701,-150.0,0.00039577,2]
[314632459,1708477847712,-150.0,0.00039578,2]
[314632460,1708477847722,-150.0,0.00039579,2]
[314632461,1708477847731,-150.0,0.0003958,2]
[314632462,1708477847740,-150.0,0.0003958,2]
[314632463,1708477847749,-150.0,0.00039581,2]
[314632464,1708477847758,-1500.0,0.00039583,2]
[314632465,1708477847768,-300.0,0.00039584,2]
[314632466,1708477847777,-150.0,0.00039587,2]
[314632467,1708477847786,-150.0,0.00039588,2]
[314632468,1708477847796,-300.0,0.00039589,2]
[314632469,1708477847804,-150.0,0.0003959,2]
[314632470,1708477847814,-150.0,0.00039591,2]
[314632471,1708477847823,-150.0,0.00039591,2]
[314632472,1708477847832,-150.0,0.00039592,2]
[314632473,1708477847842,-150.0,0.00039594,2]
[314632474,1708477847850,-150.0,0.00039595,2]
[314632475,1708477847860,-150.0,0.00039595,2]
[314632476,1708477847870,-150.0,0.00039596,2]
[314632477,1708477847880,-150.0,0.00039596,2]
[314632478,1708477847890,-4626.4328552,0.00039598,13]
[314632479,1708477847899,-150.0,0.00039599,2]
[314632480,1708477847909,-150.0,0.000396,2]
[314632481,1708477847918,-150.0,0.00039601,2]
[314632482,1708477847927,-150.0,0.00039603,2]
[314632483,1708477847936,-3647.78119974,0.00039607,2]
[314632484,1708477847946,-150.0,0.00039609,2]
[314632485,1708477847955,-1500.0,0.00039613,2]
[314632486,1708477847964,-1500.0,0.00039614,2]
[314632487,1708477847973,-150.0,0.00039615,2]
[314632488,1708477847983,-1500.0,0.00039616,2]
[314632489,1708477847992,-150.0,0.00039617,2]
[314632490,1708477848001,-150.0,0.00039619,2]
[314632491,1708477848011,-150.0,0.0003962,2]
[314632492,1708477848020,-1500.0,0.00039622,2]
[314632493,1708477848030,-175.43,0.00039624,2]
[314632494,1708477848039,-150.0,0.00039625,2]
[314632495,1708477848049,-1500.0,0.00039625,2]
[314632496,1708477848058,-800.0,0.00039625,5]
[314632497,1708477848067,-150.0,0.00039627,2]
[314632498,1708477848076,-150.0,0.00039628,2]
[314632499,1708477848084,-150.0,0.0003963,2]
[314632500,1708477848093,-150.0,0.00039636,2]
[314632501,1708477848103,-150.0,0.00039637,2]
[314632502,1708477848112,-79639.0153919,0.00039637,5]
[314632503,1708477848121,-150.0,0.00039644,2]
[314632504,1708477848131,-150.0,0.00039644,2]
[314632505,1708477848140,-300.0,0.00039645,2]
[314632506,1708477848150,-1500.0,0.00039647,2]
[314632507,1708477848160,-150.0,0.0003965,2]
[314632508,1708477848170,-150.0,0.00039652,2]
[314632509,1708477848179,-150.0,0.00039655,2]
[314632510,1708477848188,-1500.0,0.00039657,2]
[314632511,1708477848197,-1500.0,0.00039659,2]
[314632512,1708477848208,-150.0,0.00039661,2]
[314632513,1708477848218,-150.0,0.00039663,2]
[314632514,1708477848227,-150.0,0.00039664,2]
[314632515,1708477848237,-1500.0,0.00039665,2]
[314632516,1708477848247,-150.0,0.00039665,2]
[314632517,1708477848256,-150.0,0.00039666,2]
[314632518,1708477848266,-150.0,0.00039667,2]
[314632519,1708477848275,-1500.0,0.00039669,2]
[314632520,1708477848284,-150.0,0.00039669,2]
[314632521,1708477848293,-150.0,0.00039669,2]
[314632522,1708477848302,-150.0,0.00039671,2]
[314632523,1708477848312,-150.0,0.00039672,2]
[314632524,1708477848323,-162.38833905,0.00039673,2]
[314632525,1708477848332,-4979.89112243,0.00039673,2]
[314632526,1708477848342,-1500.0,0.00039673,2]
[314632527,1708477848351,-150.0,0.00039675,2]
[314632528,1708477848361,-200.0,0.00039679,5]
[314632529,1708477848371,-800.0,0.00039679,5]
[314632530,1708477848380,-200.0,0.00039679,20]
[314632531,1708477848389,-200.0,0.00039679,20]
[314632532,1708477848398,-79639.0153919,0.0003968,5]
[314632533,1708477848409,-79639.0153919,0.0003969,5]
[314632534,1708477848419,-1305.0089359,0.00039693,2]
[314632535,1708477848544,-452.52981781,0.00039698,5]
[314632536,1708477848554,-198881.80055666,0.000397,12]
[314632537,1708477848564,-192.77,0.00039726,2]
[314632538,1708477848574,-175.43,0.0003973,2]
[314632539,1708477848583,-500.0,0.0003974,2]
[314632540,1708477848593,-150.0,0.00039771,2]
[314632541,1708477848602,-173.022121,0.00039796,34]
[314632542,1708477848611,-1000.0,0.000398,2]
[314632543,1708477848623,-1000.0,0.000398,2]
[314632544,1708477848632,-1000.0,0.000398,2]
[314632545,1708477848642,-1000.0,0.000398,2]
[314632546,1708477848651,-1000.0,0.000398,2]
[314632547,1708477848662,-1000.0,0.000398,2]
[314632548,1708477848671,-1000.0,0.000398,2]
[314632549,1708477848681,-1000.0,0.000398,2]
[314632550,1708477848690,-1000.0,0.000398,2]
[314632551,1708477848700,-1000.0,0.000398,2]
[314632552,1708477848710,-1000.0,0.000398,2]
[314632553,1708477848720,-1000.0,0.000398,2]
[314632554,1708477848730,-1000.0,0.000398,2]
[314632555,1708477848739,-1000.0,0.000398,2]
[314632556,1708477848749,-1000.0,0.000398,2]
[314632557,1708477848758,-1000.0,0.000398,2]
[314632558,1708477848767,-1000.0,0.000398,2]
[314632559,1708477848777,-1000.0,0.000398,2]
[314632560,1708477848786,-1000.0,0.000398,2]
[314632561,1708477848796,-1000.0,0.000398,2]
[314632562,1708477848804,-1000.0,0.000398,2]
[314632563,1708477848814,-1000.0,0.000398,2]
[314632564,1708477848823,-672.6403,0.000398,2]
[314632565,1708477848832,-500.0,0.000398,2]
[314632566,1708477848841,-456.6645,0.000398,2]
[314632567,1708477848851,-173.022121,0.00039806,27]
[314632568,1708477848860,-9725.11487915,0.00039811,2]
[314632569,1708477848869,-173.022121,0.00039816,27]
[314632570,1708477848879,-173.022121,0.00039817,27]
[314632571,1708477848888,-173.022121,0.00039836,28]
[314632572,1708477848897,-175.43,0.00039836,2]
[314632573,1708477848907,-204.0,0.00039838,7]
[314632574,1708477848916,-280.0,0.0003985,2]
[314632575,1708477848926,-173.022121,0.00039856,29]
[314632576,1708477848935,-173.022121,0.00039866,33]
[314632577,1708477848944,-151.34,0.00039871,2]
[314632578,1708477848953,-5000.0,0.00039882,3]
[314632579,1708477848963,-156.18,0.00039882,2]
[314632580,1708477848972,-152.0,0.00039884,3]
[314632581,1708477848981,-6053.5298166,0.00039899,2]
[314632582,1708477848990,-1359.65964176,0.00039899,2]
[314632583,1708477849000,-3668.78664251,0.00039899,2]
[314632584,1708477849009,-646.96362894,0.000399,31]
[314632585,1708477849018,-161.0,0.00039904,7]
[314632586,1708477849028,-79639.0153919,0.00039937,6]
[314632587,1708477849037,-175.43,0.00039943,2]
[314632588,1708477849046,-173.022126,0.00039948,26]
[314632589,1708477849055,-10375.39979879,0.00039968,2]
[314632590,1708477849064,-79639.0153919,0.0003997,6]
[314632591,1708477849074,-680.49388865,0.00039973,12]
[314632592,1708477849083,-181.83911245,0.00039977,2]
[314632593,1708477849092,-393.40671271,0.00039983,4]
[314632594,1708477849102,-408.81561425,0.00039983,4]
[314632595,1708477849121,-200.0,0.00039987,3]
[314632596,1708477849133,-250.0,0.00039991,2]
[314632597,1708477849143,-150.0,0.00039991,2]
[314632598,1708477849153,-300.0,0.00039991,7]
[314632599,1708477849164,-150.0,0.00039991,12]
[314632600,1708477849175,-80467.23248326,0.00039992,2]
[314632601,1708477849185,-33152.67594615,0.00039992,2]
[314632602,1708477849194,-300.0,0.00039998,2]
[314632603,1708477849207,-300.0,0.00039998,2]
[314632604,1708477849217,-300.0,0.00039998,2]
[314632605,1708477849227,-300.0,0.00039998,2]
[314632606,1708477849236,-300.0,0.00039998,2]
[314632607,1708477849246,-29146.59947232,0.00039999,2]
[314632608,1708477849255,-500.41779801,0.00039999,2]
[314632609,1708477849265,-496.60991928,0.00039999,2]
[314632610,1708477849274,-285415.59230958,0.00039999,2]
[314632611,1708477849284,-300.0,0.00039999,2]
[314632612,1708477849294,-300.0,0.00039999,2]
[314632613,1708477849304,-300.0,0.00039999,2]
[314632614,1708477849314,-300.0,0.00039999,2]
[314632615,1708477849324,-206.3125,0.00039999,2]
[314632616,1708477849334,-99946.32057556,0.0004,4]
[314632617,1708477849824,-400053.67942444,0.0004,4]
[314632618,1708477849834,-324.12546429,0.0004,7]
[314632619,1708477849843,-1149.65339637,0.0004,2]
[314632620,1708477849853,-513.34736062,0.0004,2]
[314632621,1708477849863,-427.03278544,0.0004,2]
[314632622,1708477850024,-1514.12843356,0.0004,2]
[314632623,1708477850034,-321.7880208,0.0004,30]
[314632624,1708477850043,-1756.99,0.0004,7]
[314632625,1708477850052,-4444.58192912,0.0004,30]
[314632626,1708477850081,17703.750974,0.00034931,2]
[314632627,1708477850157,22129.688717,0.00035068,2]
[314632628,1708477850228,30981.564204,0.00035342,2]
[314632629,1708477853796,454.834051,0.0003452,2]
[314632630,1708477854105,682.251077,0.00034794,2]
[314632631,1708477854382,909.668103,0.00034931,2]
[314632632,1708477854662,1137.085128,0.00035068,2]
[314632633,1708477854919,1591.91918,0.00035342,2]
[314632634,1708477861979,3831.804898,0.0003452,2]
[314632635,1708477862261,5747.707348,0.00034794,2]
[314632636,1708477863078,7663.609797,0.00034931,2]
[314632637,1708477863334,9579.512246,0.00035068,2]
[314632638,1708477863581,13411.317145,0.00035342,2]
[314632639,1708477954866,447.58,0.00036672,2]
[314632640,1708478001138,165.0,0.00035,2]
[314632642,1708478139329,8590.29787075,0.00037428,2]
[314632646,1708478312323,750.0,0.00025,3]
[314632647,1708478313546,800.0,0.00027,3]
[314632649,1708478353359,-850.0,0.00029,3]
[314632650,1708478353383,-900.0,0.00031,3]
[314632651,1708478353405,-950.0,0.00033,3]
[314632652,1708478353428,-1575.698267,0.0003452,2]
[314632653,1708478353451,-11350.512782,0.0003452,2]
[314632654,1708478353472,-2363.547401,0.00034794,2]
[314632655,1708478353494,-17025.769173,0.00034794,2]
[314632656,1708478353514,-3151.396534,0.00034931,2]
[314632657,1708478353536,-22701.025565,0.00034931,2]
[314632658,1708478353558,-1000.0,0.00035,3]
[314632659,1708478353578,-3939.245668,0.00035068,2]
[314632660,1708478353599,-28376.281956,0.00035068,2]
[314632661,1708478353622,-5514.943936,0.00035342,2]
[314632662,1708478353642,-39726.794739,0.00035342,2]
[314632663,1708478353663,-1050.0,0.00037,3]
[314632664,1708478353684,-1228.93206,0.00037052,2]
[314632665,1708478353704,-243.74586658,0.00038,2]
[314632666,1708478353725,-171.0,0.00038,2]
[314632667,1708478353745,-13178.24777416,0.00038,4]
[314632668,1708478354830,155.0,0.00028999,2]
[314632670,1708478368833,219.37127992,0.00038,2]
[314632671,1708478383940,197.43415193,0.00038,2]
[314632672,1708478395610,-162.47160439,0.000381,2]
[314632673,1708478395631,-3858.45,0.000381,2]
[314632674,1708478395655,-181.74,0.00038134,2]
[314632675,1708478395678,-150.0,0.00038198,3]
[314632676,1708478395703,-300.0,0.00038198,3]
[314632677,1708478395725,-150.0,0.00038198,3]
[314632678,1708478395746,-2101.0,0.000382,3]
[314632679,1708478395766,-11662.0,0.000382,3]
[314632680,1708478395788,-150.92,0.00038356,2]
[314632681,1708478395811,-312.32,0.00038378,2]
[314632682,1708478395831,-2507.58,0.00038472,2]
[314632683,1708478395851,-218.34785309,0.00038491,2]
[314632684,1708478395873,-577.3,0.00038499,2]
[314632685,1708478398833,177.69073673,0.00038,2]
[314632686,1708478434383,155.0,0.00038499,4]
[314632687,1708478438867,155.0,0.00038499,4]
[314632688,1708478458103,534.85,0.00036588,2]
[314632689,1708478480388,250.0,0.00038494,2]
[314632690,1708478485639,-158.06,0.000385,2]
[314632691,1708478485784,-16968.49,0.000385,2]
[314632692,1708478485806,-853.43,0.00038514,15]
[314632693,1708478485828,-167.41,0.00038515,2]
[314632694,1708478485849,-2000.0,0.0003853,2]
[314632695,1708478485869,-863.47,0.00038581,2]
[314632696,1708478485889,-2000.0,0.000386,2]
[314632697,1708478485911,-157.03,0.000386,2]
[314632698,1708478485931,-687.68,0.00038611,2]
[314632699,1708478485957,-157.03,0.00038768,2]
[314632700,1708478485979,-534.85,0.00038852,2]
[314632701,1708478486000,-159.92166306,0.00038885,2]
[314632702,1708478486020,-157.03,0.00038935,2]
[314632703,1708478486041,-826.48132194,0.0003895,4]
[314632704,1708478486060,-516.822435,0.00039,14]
[314632705,1708478486080,-1100.0,0.00039,3]
[314632706,1708478488817,159.92166306,0.00038885,2]
[314632707,1708478490361,5980.0,0.000385,2]
[314632708,1708478495265,380.51,0.00038868,2]
[314632709,1708478511782,200.0,0.000385,10]
[314632710,1708478539967,173.0,0.00038,2]
[314632711,1708478549621,171.0,0.00038,2]
[314632712,1708478575996,-155.0,0.00039102,4]
[314632713,1708478576017,-155.0,0.00039102,4]
[314632714,1708478576045,-157.03,0.00039103,2]
[314632715,1708478576064,-445.09,0.0003926,2]
[314632716,1708478576084,-157.03,0.00039271,2]
[314632717,1708478576104,-159.92166306,0.0003939,2]
[314632718,1708478576127,-200.0,0.00039393,2]
[314632719,1708478576150,-217.135061,0.00039394,5]
[314632720,1708478576173,-157.03,0.00039438,2]
[314632721,1708478576194,-13178.24777416,0.00039499,4]
[314632722,1708478576214,-412.6,0.000395,2]
[314632723,1708478576235,-423.24,0.000395,2]
[314632724,1708478576255,-344.02,0.000395,2]
[314632725,1708478578814,2000.0,0.00038831,2]
[314632726,1708478582732,173.75462037,0.00039444,2]
[314632727,1708478611207,481.08,0.00038472,2]
[314632728,1708478613980,204.0,0.00038854,2]
[314632729,1708478614976,156.49,0.00038859,2]
[314632730,1708478665640,-200.0,0.00039518,5]
[314632731,1708478665664,-800.0,0.00039518,5]
[314632732,1708478665686,-200.0,0.00039518,20]
[314632733,1708478665709,-500.0,0.00039518,20]
[314632734,1708478665730,-200.0,0.00039518,20]
[314632735,1708478665751,-181.74,0.00039545,2]
[314632736,1708478665774,-785.13,0.00039596,10]
[314632737,1708478665795,-13178.24777416,0.00039605,4]
[314632738,1708478665817,-300.0,0.00039605,5]
[314632739,1708478665843,-157.03,0.00039606,2]
[314632740,1708478665865,-150.99,0.00039606,2]
[314632741,1708478665888,-19137.74,0.00039606,2]
[314632742,1708478665910,-499.99,0.00039606,2]
[314632743,1708478665934,-261395.61411517,0.00039606,2]
[314632744,1708478665956,-800.0,0.00039679,5]
[314632745,1708478665980,-200.0,0.00039693,2]
[314632746,1708478666003,-150.0,0.00039726,2]
[314632747,1708478666025,-192.77,0.00039726,2]
[314632748,1708478666049,-150.0,0.0003973,2]
[314632749,1708478666072,-150.0,0.00039731,2]
[314632750,1708478666096,-150.0,0.00039733,2]
[314632751,1708478666118,-150.0,0.00039733,2]
[314632752,1708478666144,-150.0,0.00039734,2]
[314632753,1708478666170,-150.0,0.00039737,2]
[314632754,1708478666193,-150.0,0.00039747,2]
[314632755,1708478666217,-150.0,0.00039753,2]
[314632756,1708478666239,-150.0,0.00039753,2]
[314632757,1708478666262,-150.0,0.00039754,2]
[314632758,1708478666285,-150.0,0.00039763,2]
[314632759,1708478666307,-150.0,0.00039764,2]
[314632760,1708478666330,-150.0,0.00039766,2]
[314632761,1708478666354,-150.0,0.00039767,2]
[314632762,1708478666377,-150.0,0.00039768,2]
[314632763,1708478666398,-150.0,0.00039771,2]
[314632764,1708478666420,-150.0,0.00039772,2]
[314632765,1708478666443,-150.0,0.00039772,2]
[314632766,1708478666465,-157.03,0.00039773,2]
[314632767,1708478666487,-150.0,0.00039776,2]
[314632768,1708478666509,-150.0,0.00039777,2]
[314632769,1708478666534,-150.0,0.00039779,2]
[314632770,1708478666557,-150.0,0.0003978,2]
[314632771,1708478666580,-158.06,0.00039784,2]
[314632772,1708478666604,-150.0,0.00039784,2]
[314632773,1708478666630,-150.0,0.00039792,2]
[314632774,1708478666653,-150.0,0.00039793,2]
[314632775,1708478666677,-150.0,0.00039797,2]
[314632776,1708478666700,-423.24,0.000398,2]
[314632777,1708478666723,-411.79,0.000398,2]
[314632778,1708478666747,-344.02,0.000398,2]
[314632779,1708478666770,-419.46,0.000398,2]
[314632780,1708478666796,-150.0,0.00039803,2]
[314632781,1708478666822,-150.0,0.00039805,2]
[314632782,1708478666846,-150.0,0.00039808,2]
[314632783,1708478666870,-150.0,0.00039815,2]
[314632784,1708478666901,-150.0,0.00039819,2]
[314632785,1708478666924,-150.0,0.00039822,2]
[314632786,1708478666947,-150.0,0.00039823,2]
[314632787,1708478666972,-150.0,0.00039826,2]
[314632788,1708478666995,-150.0,0.00039827,2]
[314632789,1708478667017,-150.0,0.00039831,2]
[314632790,1708478667039,-150.0,0.00039835,2]
[314632791,1708478667065,-150.0,0.00039837,2]
[314632792,1708478667088,-150.0,0.00039837,2]
[314632793,1708478667278,-150.0,0.00039839,2]
[314632794,1708478667301,-150.0,0.00039839,2]
[314632795,1708478667322,-150.0,0.00039845,2]
[314632796,1708478667344,-150.0,0.00039846,2]
[314632797,1708478667365,-159.24403769,0.00039849,2]
[314632798,1708478667395,-150.0,0.00039852,2]
[314632799,1708478667416,-150.0,0.00039858,2]
[314632800,1708478667437,-207.4007,0.0003987,2]
[314632801,1708478667458,-5000.0,0.0003987,3]
[314632802,1708478667481,-150.0,0.00039871,2]
[314632803,1708478667501,-186.36672709,0.00039875,2]
[314632804,1708478667524,-941.3946,0.0003988,2]
[314632805,1708478667545,-186.36672708,0.00039881,2]
[314632806,1708478667567,-150.0,0.00039885,2]
[314632807,1708478667589,-186.36672708,0.00039886,2]
[314632808,1708478667609,-474.5883,0.00039886,2]
[314632809,1708478667632,-520.802,0.00039886,2]
[314632810,1708478667653,-150.0,0.00039887,2]
[314632811,1708478667674,-1215.7624,0.0003989,120]
[314632812,1708478667698,-150.0,0.00039891,2]